[Event "Titled Tuesday Blitz July 26 Early 2022"]
[White "Agasarov, Benik"]
[Black "Buscar, Michael"]
[WhiteFideId "13314823"]
[BlackFideId "2603616"]
[WhiteElo "2680"]
[BlackElo "2010"]
[Result "1-0"]
[Round "10"]
[TimeControl "180+1"]
[Date "2022.07.27"]
[WhiteClock "0:00:23"]
[BlackClock "0:00:06"]

1. e4 {[%clk 0:03:00]}  c5 {[%clk 0:02:57]} 2. Nc3 {[%clk 0:03:00]}  g6 {[%clk 0:02:56]} 3. d4 {[%clk 0:03:00]}  cxd4 {[%clk 0:02:54]} 4. Qxd4 {[%clk 0:03:01]}  Nf6 {[%clk 0:02:54]} 5. Nf3 {[%clk 0:02:58]}  Nc6 {[%clk 0:02:53]} 6. Qa4 {[%clk 0:02:58]}  Bg7 {[%clk 0:02:49]} 7. e5 {[%clk 0:02:59]}  Nh5 {[%clk 0:02:49]} 8. Qe4 {[%clk 0:02:58]}  f5 {[%clk 0:02:45]} 9. Qe2 {[%clk 0:02:54]}  O-O {[%clk 0:02:41]} 10. Bd2 {[%clk 0:02:46]}  d6 {[%clk 0:02:42]} 11. O-O-O {[%clk 0:02:43]}  Nxe5 {[%clk 0:02:38]} 12. Nxe5 {[%clk 0:02:40]}  Bxe5 {[%clk 0:02:37]} 13. Bh6 {[%clk 0:02:35]}  Ng7 {[%clk 0:02:26]} 14. f4 {[%clk 0:02:30]}  Bf6 {[%clk 0:02:25]} 15. Nd5 {[%clk 0:02:28]}  Bd7 {[%clk 0:02:13]} 16. g3 {[%clk 0:02:15]}  Rc8 {[%clk 0:02:12]} 17. Bg2 {[%clk 0:02:13]}  Ba4 {[%clk 0:01:54]} 18. b3 {[%clk 0:02:03]}  Bc6 {[%clk 0:01:53]} 19. Kb1 {[%clk 0:02:01]}  Bxd5 {[%clk 0:01:43]} 20. Bxd5+ {[%clk 0:02:00]}  Kh8 {[%clk 0:01:42]} 21. c4 {[%clk 0:01:53]}  Qa5 {[%clk 0:01:39]} 22. Qd2 {[%clk 0:01:44]}  Qxd2 {[%clk 0:01:17]} 23. Rxd2 {[%clk 0:01:44]}  Rc7 {[%clk 0:01:17]} 24. Re1 {[%clk 0:01:40]}  Rb8 {[%clk 0:01:09]} 25. Rde2 {[%clk 0:01:39]}  b5 {[%clk 0:01:01]} 26. Rc2 {[%clk 0:01:32]}  e5 {[%clk 0:00:57]} 27. fxe5 {[%clk 0:01:30]}  dxe5 {[%clk 0:00:53]} 28. Rec1 {[%clk 0:01:29]}  bxc4 {[%clk 0:00:49]} 29. Rxc4 {[%clk 0:01:28]}  Rxc4 {[%clk 0:00:46]} 30. Rxc4 {[%clk 0:01:29]}  Ne8 {[%clk 0:00:43]} 31. Rc6 {[%clk 0:00:53]}  Bg7 {[%clk 0:00:37]} 32. Be3 {[%clk 0:00:51]}  Rd8 {[%clk 0:00:34]} 33. Bc4 {[%clk 0:00:49]}  Nd6 {[%clk 0:00:31]} 34. Bg5 {[%clk 0:00:46]}  Nxc4 {[%clk 0:00:11]} 35. Bxd8 {[%clk 0:00:45]}  Nd2+ {[%clk 0:00:11]} 36. Kc2 {[%clk 0:00:45]}  Nf3 {[%clk 0:00:11]} 37. Rc8 {[%clk 0:00:45]}  h5 {[%clk 0:00:09]} 38. Bf6+ {[%clk 0:00:43]}  Kh7 {[%clk 0:00:10]} 39. Rc7 {[%clk 0:00:43]}  Nd4+ {[%clk 0:00:10]} 40. Kd3 {[%clk 0:00:41]}  Ne6 {[%clk 0:00:10]} 41. Rxa7 {[%clk 0:00:40]}  Kh6 {[%clk 0:00:09]} 42. Bxg7+ {[%clk 0:00:37]}  Nxg7 {[%clk 0:00:09]} 43. Re7 {[%clk 0:00:36]}  e4+ {[%clk 0:00:09]} 44. Ke3 {[%clk 0:00:37]}  h4 {[%clk 0:00:08]} 45. a4 {[%clk 0:00:32]}  hxg3 {[%clk 0:00:05]} 46. hxg3 {[%clk 0:00:32]}  Nh5 {[%clk 0:00:06]} 47. g4 {[%clk 0:00:32]}  Nf6 {[%clk 0:00:07]} 48. gxf5 {[%clk 0:00:32]}  Nd5+ {[%clk 0:00:07]} 49. Kxe4 {[%clk 0:00:33]}  Nxe7 {[%clk 0:00:07]} 50. fxg6 {[%clk 0:00:29]}  Kxg6 {[%clk 0:00:07]} 51. Ke5 {[%clk 0:00:29]}  Kf7 {[%clk 0:00:08]} 52. Kd6 {[%clk 0:00:29]}  Ke8 {[%clk 0:00:08]} 53. a5 {[%clk 0:00:28]}  Kd8 {[%clk 0:00:08]} 54. a6 {[%clk 0:00:26]}  Nc8+ {[%clk 0:00:07]} 55. Kc6 {[%clk 0:00:27]}  Na7+ {[%clk 0:00:06]} 56. Kb6 {[%clk 0:00:26]}  Nc8+ {[%clk 0:00:06]} 57. Kb7 {[%clk 0:00:26]}  Kd7 {[%clk 0:00:06]} 58. b4 {[%clk 0:00:24]}  Nd6+ {[%clk 0:00:05]} 59. Kb8 {[%clk 0:00:20]}  Nb5 {[%clk 0:00:02]} 60. a7 {[%clk 0:00:20]}  Nxa7 {[%clk 0:00:02]} 61. Kxa7 {[%clk 0:00:20]}  Kc6 {[%clk 0:00:03]} 62. Ka6 {[%clk 0:00:21]}  Kc7 {[%clk 0:00:03]} 63. b5 {[%clk 0:00:21]}  Kb8 {[%clk 0:00:03]} 64. Kb6 {[%clk 0:00:20]}  Ka8 {[%clk 0:00:04]} 65. Kc7 {[%clk 0:00:20]}  Ka7 {[%clk 0:00:04]} 66. b6+ {[%clk 0:00:21]}  Ka8 {[%clk 0:00:04]} 67. b7+ {[%clk 0:00:21]}  Ka7 {[%clk 0:00:05]} 68. b8=Q+ {[%clk 0:00:22]}  Ka6 {[%clk 0:00:06]} 69. Qb6# {[%clk 0:00:23]} 1-0


[Site "https://www.chess.com"]

[Event "Titled Tuesday Blitz July 26 Early 2022"]
[White "Aggelis, Nikolaos"]
[Black "Smietanska, Wiktoria"]
[WhiteFideId "4213220"]
[BlackFideId "21869359"]
[WhiteElo "2154"]
[BlackElo "1883"]
[Result "1-0"]
[Round "10"]
[TimeControl "180+1"]
[Date "2022.07.27"]
[WhiteClock "0:00:09"]
[BlackClock "0:00:01"]

1. d4 {[%clk 0:02:24]}  Nf6 {[%clk 0:02:54]} 2. Nf3 {[%clk 0:02:22]}  g6 {[%clk 0:02:54]} 3. g3 {[%clk 0:02:22]}  Bg7 {[%clk 0:02:54]} 4. Bg2 {[%clk 0:02:23]}  O-O {[%clk 0:02:55]} 5. O-O {[%clk 0:02:23]}  d6 {[%clk 0:02:55]} 6. b3 {[%clk 0:02:23]}  Nbd7 {[%clk 0:02:53]} 7. Bb2 {[%clk 0:02:22]}  Re8 {[%clk 0:02:54]} 8. Nbd2 {[%clk 0:02:22]}  e5 {[%clk 0:02:53]} 9. e4 {[%clk 0:02:20]}  exd4 {[%clk 0:02:52]} 10. Nxd4 {[%clk 0:02:18]}  Qe7 {[%clk 0:02:50]} 11. Re1 {[%clk 0:02:18]}  a5 {[%clk 0:02:46]} 12. a4 {[%clk 0:02:17]}  Nc5 {[%clk 0:02:45]} 13. h3 {[%clk 0:02:16]}  Bd7 {[%clk 0:02:42]} 14. Kh2 {[%clk 0:02:10]}  Ne6 {[%clk 0:02:20]} 15. Nf5 {[%clk 0:01:58]}  gxf5 {[%clk 0:02:15]} 16. exf5 {[%clk 0:01:58]}  c6 {[%clk 0:02:11]} 17. fxe6 {[%clk 0:01:58]}  Bxe6 {[%clk 0:02:11]} 18. Qf3 {[%clk 0:01:49]}  Ng4+ {[%clk 0:02:05]} 19. Qxg4 {[%clk 0:01:27]}  Bxg4 {[%clk 0:01:56]} 20. Rxe7 {[%clk 0:01:25]}  Rxe7 {[%clk 0:01:56]} 21. Bxg7 {[%clk 0:01:22]}  Kxg7 {[%clk 0:01:35]} 22. hxg4 {[%clk 0:01:20]}  Re2 {[%clk 0:01:35]} 23. Rd1 {[%clk 0:01:21]}  Rxf2 {[%clk 0:01:35]} 24. Kg1 {[%clk 0:01:17]}  Re2 {[%clk 0:01:34]} 25. Bf3 {[%clk 0:01:13]}  Re6 {[%clk 0:01:26]} 26. Kf2 {[%clk 0:01:07]}  d5 {[%clk 0:01:25]} 27. Re1 {[%clk 0:00:58]}  Rae8 {[%clk 0:01:19]} 28. Rxe6 {[%clk 0:00:58]}  Rxe6 {[%clk 0:01:20]} 29. Nf1 {[%clk 0:00:57]}  Kg6 {[%clk 0:01:05]} 30. Ne3 {[%clk 0:00:53]}  b6 {[%clk 0:00:47]} 31. Nf5 {[%clk 0:00:52]}  b5 {[%clk 0:00:42]} 32. Nd4 {[%clk 0:00:45]}  bxa4 {[%clk 0:00:34]} 33. bxa4 {[%clk 0:00:22]}  Rd6 {[%clk 0:00:33]} 34. Be2 {[%clk 0:00:22]}  Kf6 {[%clk 0:00:23]} 35. Bd3 {[%clk 0:00:21]}  Ke5 {[%clk 0:00:20]} 36. Nf3+ {[%clk 0:00:19]}  Ke6 {[%clk 0:00:16]} 37. Bxh7 {[%clk 0:00:19]}  c5 {[%clk 0:00:13]} 38. g5 {[%clk 0:00:18]}  Rb6 {[%clk 0:00:12]} 39. Bg8 {[%clk 0:00:18]}  Ke7 {[%clk 0:00:10]} 40. Ne5 {[%clk 0:00:17]}  f6 {[%clk 0:00:06]} 41. Nd3 {[%clk 0:00:15]}  c4 {[%clk 0:00:04]} 42. Nc5 {[%clk 0:00:15]}  fxg5 {[%clk 0:00:03]} 43. Bxd5 {[%clk 0:00:15]}  Kd6 {[%clk 0:00:03]} 44. Bxc4 {[%clk 0:00:11]}  Kxc5 {[%clk 0:00:03]} 45. Bb3 {[%clk 0:00:11]}  Kb4 {[%clk 0:00:03]} 46. Kf3 {[%clk 0:00:12]}  Rd6 {[%clk 0:00:02]} 47. Kg4 {[%clk 0:00:12]}  Rd4+ {[%clk 0:00:02]} 48. Kxg5 {[%clk 0:00:12]}  Rd2 {[%clk 0:00:02]} 49. g4 {[%clk 0:00:12]}  Kc3 {[%clk 0:00:02]} 50. Kf6 {[%clk 0:00:12]}  Kd4 {[%clk 0:00:03]} 51. g5 {[%clk 0:00:13]}  Ke4 {[%clk 0:00:02]} 52. g6 {[%clk 0:00:13]}  Rd6+ {[%clk 0:00:02]} 53. Kf7 {[%clk 0:00:13]}  Kf5 {[%clk 0:00:02]} 54. g7 {[%clk 0:00:13]}  Rd7+ {[%clk 0:00:02]} 55. Kf8 {[%clk 0:00:13]}  Kf6 {[%clk 0:00:01]} 56. g8=N+ {[%clk 0:00:12]}  Kg6 {[%clk 0:00:02]} 57. Ne7+ {[%clk 0:00:12]}  Kf6 {[%clk 0:00:02]} 58. Nd5+ {[%clk 0:00:12]}  Kg6 {[%clk 0:00:02]} 59. Nb6 {[%clk 0:00:12]}  Rb7 {[%clk 0:00:02]} 60. Nc4 {[%clk 0:00:11]}  Kf6 {[%clk 0:00:02]} 61. Ke8 {[%clk 0:00:11]}  Ra7 {[%clk 0:00:01]} 62. Kd8 {[%clk 0:00:11]}  Ke6 {[%clk 0:00:02]} 63. Kc8 {[%clk 0:00:11]}  Kf5 {[%clk 0:00:01]} 64. Kb8 {[%clk 0:00:10]}  Rg7 {[%clk 0:00:01]} 65. Nxa5 {[%clk 0:00:10]}  Ke5 {[%clk 0:00:01]} 66. Nc6+ {[%clk 0:00:09]} 1-0


[Site "https://www.chess.com"]

[Event "Titled Tuesday Blitz July 26 Early 2022"]
[White "Bintang, Rasyid A. Hidayat"]
[Black "Polster, Christian"]
[WhiteFideId "7105355"]
[BlackFideId "12965081"]
[WhiteElo "2382"]
[BlackElo "2256"]
[Result "1/2-1/2"]
[Round "10"]
[TimeControl "180+1"]
[Date "2022.07.27"]
[WhiteClock "0:00:02"]
[BlackClock "0:00:07"]

1. d4 {[%clk 0:03:00]}  Nf6 {[%clk 0:02:58]} 2. c4 {[%clk 0:03:00]}  c5 {[%clk 0:02:57]} 3. d5 {[%clk 0:03:00]}  b5 {[%clk 0:02:57]} 4. Nd2 {[%clk 0:02:58]}  d6 {[%clk 0:02:50]} 5. f3 {[%clk 0:02:53]}  g6 {[%clk 0:02:48]} 6. e4 {[%clk 0:02:53]}  Bg7 {[%clk 0:02:49]} 7. cxb5 {[%clk 0:02:48]}  a6 {[%clk 0:02:47]} 8. Bd3 {[%clk 0:02:45]}  O-O {[%clk 0:02:45]} 9. Ne2 {[%clk 0:02:40]}  Nbd7 {[%clk 0:02:33]} 10. bxa6 {[%clk 0:02:28]}  Ne5 {[%clk 0:02:29]} 11. Nc4 {[%clk 0:02:25]}  Nxd3+ {[%clk 0:02:25]} 12. Qxd3 {[%clk 0:02:26]}  Bxa6 {[%clk 0:02:24]} 13. O-O {[%clk 0:02:21]}  Nd7 {[%clk 0:02:23]} 14. Qc2 {[%clk 0:02:10]}  Bxc4 {[%clk 0:02:13]} 15. Qxc4 {[%clk 0:02:10]}  Qa5 {[%clk 0:02:14]} 16. Rd1 {[%clk 0:02:06]}  Rfb8 {[%clk 0:02:11]} 17. Bd2 {[%clk 0:02:05]}  Qb5 {[%clk 0:01:55]} 18. Qxb5 {[%clk 0:02:01]}  Rxb5 {[%clk 0:01:55]} 19. Bc3 {[%clk 0:02:01]}  Bxc3 {[%clk 0:01:55]} 20. bxc3 {[%clk 0:02:02]}  Rb2 {[%clk 0:01:55]} 21. Kf2 {[%clk 0:01:52]}  Raxa2 {[%clk 0:01:20]} 22. Rxa2 {[%clk 0:01:51]}  Rxa2 {[%clk 0:01:21]} 23. Ke3 {[%clk 0:01:49]}  Ne5 {[%clk 0:01:17]} 24. Rb1 {[%clk 0:01:46]}  Nc4+ {[%clk 0:01:06]} 25. Kd3 {[%clk 0:01:46]}  Rd2+ {[%clk 0:01:05]} 26. Kxc4 {[%clk 0:01:45]}  Rxe2 {[%clk 0:01:05]} 27. Rg1 {[%clk 0:01:37]}  Kg7 {[%clk 0:01:04]} 28. Kd3 {[%clk 0:01:35]}  Rf2 {[%clk 0:01:04]} 29. Ke3 {[%clk 0:01:33]}  Rb2 {[%clk 0:01:01]} 30. Kd3 {[%clk 0:01:21]}  f5 {[%clk 0:00:59]} 31. h3 {[%clk 0:01:11]}  Kf6 {[%clk 0:00:58]} 32. g3 {[%clk 0:01:07]}  Rh2 {[%clk 0:00:46]} 33. h4 {[%clk 0:01:04]}  fxe4+ {[%clk 0:00:28]} 34. fxe4 {[%clk 0:01:03]}  Ke5 {[%clk 0:00:29]} 35. Rf1 {[%clk 0:00:59]}  Rg2 {[%clk 0:00:25]} 36. Rf3 {[%clk 0:00:54]}  h5 {[%clk 0:00:13]} 37. Re3 {[%clk 0:00:43]}  Rf2 {[%clk 0:00:12]} 38. Kc4 {[%clk 0:00:35]}  e6 {[%clk 0:00:11]} 39. dxe6 {[%clk 0:00:33]}  Kxe6 {[%clk 0:00:12]} 40. Kb5 {[%clk 0:00:30]}  Ke5 {[%clk 0:00:11]} 41. Kc6 {[%clk 0:00:29]}  Rg2 {[%clk 0:00:05]} 42. Rd3 {[%clk 0:00:26]}  Kxe4 {[%clk 0:00:04]} 43. Rxd6 {[%clk 0:00:26]}  Rxg3 {[%clk 0:00:05]} 44. c4 {[%clk 0:00:24]}  Rg4 {[%clk 0:00:03]} 45. Kxc5 {[%clk 0:00:22]}  Kf3 {[%clk 0:00:03]} 46. Rd4 {[%clk 0:00:19]}  Kg3 {[%clk 0:00:02]} 47. Kd5 {[%clk 0:00:16]}  Kxh4 {[%clk 0:00:02]} 48. c5 {[%clk 0:00:12]}  Rxd4+ {[%clk 0:00:01]} 49. Kxd4 {[%clk 0:00:12]}  g5 {[%clk 0:00:02]} 50. c6 {[%clk 0:00:13]}  g4 {[%clk 0:00:02]} 51. c7 {[%clk 0:00:14]}  g3 {[%clk 0:00:03]} 52. c8=Q {[%clk 0:00:14]}  g2 {[%clk 0:00:03]} 53. Qc1 {[%clk 0:00:14]}  Kg3 {[%clk 0:00:03]} 54. Qg1 {[%clk 0:00:14]}  h4 {[%clk 0:00:03]} 55. Ke3 {[%clk 0:00:15]}  h3 {[%clk 0:00:04]} 56. Qf2+ {[%clk 0:00:12]}  Kh2 {[%clk 0:00:04]} 57. Kf3 {[%clk 0:00:06]}  Kh1 {[%clk 0:00:05]} 58. Qg3 {[%clk 0:00:04]}  g1=Q {[%clk 0:00:05]} 59. Qxh3+ {[%clk 0:00:04]}  Qh2 {[%clk 0:00:06]} 60. Qf1+ {[%clk 0:00:04]}  Qg1 {[%clk 0:00:06]} 61. Qe2 {[%clk 0:00:02]}  Qh2 {[%clk 0:00:05]} 62. Qe1+ {[%clk 0:00:02]}  Qg1 {[%clk 0:00:06]} 63. Qh4+ {[%clk 0:00:02]}  Qh2 {[%clk 0:00:06]} 64. Qe1+ {[%clk 0:00:02]}  Qg1 {[%clk 0:00:06]} 65. Qxg1+ {[%clk 0:00:02]}  Kxg1 {[%clk 0:00:07]} 1/2-1/2


[Site "https://www.chess.com"]

[Event "Titled Tuesday Blitz July 26 Early 2022"]
[White "Bressac, Stephane"]
[Black "Rangel, Daniel"]
[WhiteFideId "655945"]
[BlackFideId "2124475"]
[WhiteElo "2321"]
[BlackElo "2225"]
[Result "1-0"]
[Round "10"]
[TimeControl "180+1"]
[Date "2022.07.27"]
[WhiteClock "0:00:18"]
[BlackClock "0:00:18"]

1. e4 {[%clk 0:03:00]}  c5 {[%clk 0:02:59]} 2. Nf3 {[%clk 0:03:01]}  g6 {[%clk 0:03:00]} 3. d4 {[%clk 0:03:00]}  cxd4 {[%clk 0:03:01]} 4. Qxd4 {[%clk 0:03:00]}  Nf6 {[%clk 0:03:00]} 5. e5 {[%clk 0:03:01]}  Nc6 {[%clk 0:03:01]} 6. Qa4 {[%clk 0:03:02]}  Nd5 {[%clk 0:03:01]} 7. Qb3 {[%clk 0:03:03]}  Nc7 {[%clk 0:02:58]} 8. Nc3 {[%clk 0:03:03]}  Bg7 {[%clk 0:02:57]} 9. Bf4 {[%clk 0:03:03]}  Ne6 {[%clk 0:02:56]} 10. Bg3 {[%clk 0:03:01]}  O-O {[%clk 0:02:56]} 11. O-O-O {[%clk 0:03:01]}  a5 {[%clk 0:02:46]} 12. Kb1 {[%clk 0:03:01]}  a4 {[%clk 0:02:46]} 13. Nxa4 {[%clk 0:02:40]}  Qa5 {[%clk 0:02:45]} 14. Nc3 {[%clk 0:02:25]}  d6 {[%clk 0:02:45]} 15. Qb5 {[%clk 0:02:13]}  Qa7 {[%clk 0:02:39]} 16. a3 {[%clk 0:02:03]}  Ned4 {[%clk 0:02:15]} 17. Nxd4 {[%clk 0:02:01]}  Nxd4 {[%clk 0:02:16]} 18. Qd5 {[%clk 0:01:34]}  Nc6 {[%clk 0:02:03]} 19. Nb5 {[%clk 0:01:34]}  Qb6 {[%clk 0:01:59]} 20. exd6 {[%clk 0:01:17]}  Be6 {[%clk 0:01:52]} 21. Qd3 {[%clk 0:01:16]}  exd6 {[%clk 0:01:44]} 22. Qe3 {[%clk 0:01:07]}  Qa5 {[%clk 0:01:24]} 23. Bxd6 {[%clk 0:01:00]}  Rfd8 {[%clk 0:01:20]} 24. Be2 {[%clk 0:00:57]}  Nd4 {[%clk 0:01:11]} 25. Nxd4 {[%clk 0:00:51]}  Rxd6 {[%clk 0:01:07]} 26. Nb3 {[%clk 0:00:48]}  Rxd1+ {[%clk 0:01:00]} 27. Rxd1 {[%clk 0:00:47]}  Qf5 {[%clk 0:00:54]} 28. Nd4 {[%clk 0:00:36]}  Qf6 {[%clk 0:00:49]} 29. c3 {[%clk 0:00:26]}  Bd5 {[%clk 0:00:49]} 30. Bf3 {[%clk 0:00:25]}  Bc4 {[%clk 0:00:45]} 31. Nc2 {[%clk 0:00:22]}  Bb3 {[%clk 0:00:29]} 32. Rd7 {[%clk 0:00:22]}  Qf5 {[%clk 0:00:20]} 33. Qd3 {[%clk 0:00:22]}  Qe6 {[%clk 0:00:14]} 34. Rd8+ {[%clk 0:00:22]}  Rxd8 {[%clk 0:00:14]} 35. Qxd8+ {[%clk 0:00:22]}  Bf8 {[%clk 0:00:15]} 36. Qd2 {[%clk 0:00:20]}  Bc5 {[%clk 0:00:13]} 37. Kc1 {[%clk 0:00:18]}  Qc4 {[%clk 0:00:12]} 38. Be2 {[%clk 0:00:14]}  Qe4 {[%clk 0:00:11]} 39. f3 {[%clk 0:00:13]}  Qe5 {[%clk 0:00:09]} 40. g3 {[%clk 0:00:12]}  Bxc2 {[%clk 0:00:08]} 41. Kxc2 {[%clk 0:00:11]}  Be3 {[%clk 0:00:07]} 42. Qd8+ {[%clk 0:00:11]}  Kg7 {[%clk 0:00:07]} 43. Qd3 {[%clk 0:00:11]}  Bg5 {[%clk 0:00:07]} 44. Qe4 {[%clk 0:00:10]}  Qd6 {[%clk 0:00:06]} 45. Qd4+ {[%clk 0:00:10]}  Qxd4 {[%clk 0:00:06]} 46. cxd4 {[%clk 0:00:11]}  Kf6 {[%clk 0:00:07]} 47. Kd3 {[%clk 0:00:11]}  Ke7 {[%clk 0:00:07]} 48. Kc4 {[%clk 0:00:08]}  Kd6 {[%clk 0:00:07]} 49. b4 {[%clk 0:00:08]}  Bc1 {[%clk 0:00:07]} 50. a4 {[%clk 0:00:08]}  Bd2 {[%clk 0:00:04]} 51. Bf1 {[%clk 0:00:08]}  b6 {[%clk 0:00:03]} 52. Bh3 {[%clk 0:00:08]}  f5 {[%clk 0:00:03]} 53. Bf1 {[%clk 0:00:07]}  Be3 {[%clk 0:00:03]} 54. h3 {[%clk 0:00:06]}  Bf2 {[%clk 0:00:03]} 55. g4 {[%clk 0:00:07]}  fxg4 {[%clk 0:00:03]} 56. fxg4 {[%clk 0:00:07]}  Be3 {[%clk 0:00:04]} 57. Bg2 {[%clk 0:00:07]}  g5 {[%clk 0:00:03]} 58. Be4 {[%clk 0:00:07]}  h6 {[%clk 0:00:03]} 59. a5 {[%clk 0:00:06]}  bxa5 {[%clk 0:00:03]} 60. bxa5 {[%clk 0:00:07]}  Kc7 {[%clk 0:00:04]} 61. a6 {[%clk 0:00:04]}  Kb6 {[%clk 0:00:04]} 62. Bb7 {[%clk 0:00:05]}  Bf4 {[%clk 0:00:03]} 63. Kd5 {[%clk 0:00:05]}  Kc7 {[%clk 0:00:03]} 64. Ke6 {[%clk 0:00:06]}  Kb6 {[%clk 0:00:03]} 65. d5 {[%clk 0:00:06]}  Kc7 {[%clk 0:00:04]} 66. d6+ {[%clk 0:00:03]}  Bxd6 {[%clk 0:00:05]} 67. a7 {[%clk 0:00:04]}  Kxb7 {[%clk 0:00:05]} 68. Kxd6 {[%clk 0:00:04]}  Kxa7 {[%clk 0:00:06]} 69. Ke6 {[%clk 0:00:05]}  Kb6 {[%clk 0:00:06]} 70. Kf6 {[%clk 0:00:06]}  Kc5 {[%clk 0:00:07]} 71. Kg6 {[%clk 0:00:07]}  Kd4 {[%clk 0:00:08]} 72. Kxh6 {[%clk 0:00:07]}  Ke4 {[%clk 0:00:09]} 73. Kxg5 {[%clk 0:00:08]}  Ke5 {[%clk 0:00:09]} 74. h4 {[%clk 0:00:09]}  Ke6 {[%clk 0:00:10]} 75. Kg6 {[%clk 0:00:09]}  Ke7 {[%clk 0:00:11]} 76. Kg7 {[%clk 0:00:10]}  Ke6 {[%clk 0:00:12]} 77. h5 {[%clk 0:00:11]}  Ke5 {[%clk 0:00:12]} 78. g5 {[%clk 0:00:12]}  Kf4 {[%clk 0:00:13]} 79. g6 {[%clk 0:00:12]}  Kf5 {[%clk 0:00:14]} 80. h6 {[%clk 0:00:13]}  Kg5 {[%clk 0:00:15]} 81. h7 {[%clk 0:00:14]}  Kf5 {[%clk 0:00:16]} 82. h8=Q {[%clk 0:00:15]}  Kg5 {[%clk 0:00:16]} 83. Qf8 {[%clk 0:00:15]}  Kh5 {[%clk 0:00:17]} 84. Kh7 {[%clk 0:00:16]}  Kg5 {[%clk 0:00:16]} 85. g7 {[%clk 0:00:17]}  Kh5 {[%clk 0:00:17]} 86. g8=Q {[%clk 0:00:17]}  Kh4 {[%clk 0:00:18]} 87. Qh6# {[%clk 0:00:18]} 1-0


[Site "https://www.chess.com"]

[Event "Titled Tuesday Blitz July 26 Early 2022"]
[White "Bueno, Alfeu Junior Varela"]
[Black "Altman, Joshua"]
[WhiteFideId "2108879"]
[BlackFideId "426210"]
[WhiteElo "2162"]
[BlackElo "1945"]
[Result "0-1"]
[Round "10"]
[TimeControl "180+1"]
[Date "2022.07.27"]
[WhiteClock "0:00:16"]
[BlackClock "0:00:20"]

1. e4 {[%clk 0:01:45]}  e6 {[%clk 0:02:59]} 2. d4 {[%clk 0:01:43]}  d5 {[%clk 0:03:00]} 3. Nd2 {[%clk 0:01:44]}  Nf6 {[%clk 0:03:00]} 4. Bd3 {[%clk 0:01:44]}  c5 {[%clk 0:02:54]} 5. c3 {[%clk 0:01:43]}  cxd4 {[%clk 0:02:50]} 6. cxd4 {[%clk 0:01:43]}  Nc6 {[%clk 0:02:51]} 7. e5 {[%clk 0:01:43]}  Nd7 {[%clk 0:02:51]} 8. Ne2 {[%clk 0:01:44]}  Qb6 {[%clk 0:02:50]} 9. Nf3 {[%clk 0:01:43]}  f6 {[%clk 0:02:50]} 10. exf6 {[%clk 0:01:43]}  Nxf6 {[%clk 0:02:51]} 11. O-O {[%clk 0:01:43]}  Bd6 {[%clk 0:02:51]} 12. Bf4 {[%clk 0:01:40]}  Bxf4 {[%clk 0:02:51]} 13. Nxf4 {[%clk 0:01:41]}  Qxb2 {[%clk 0:02:51]} 14. Re1 {[%clk 0:01:40]}  O-O {[%clk 0:02:51]} 15. Nxe6 {[%clk 0:01:40]}  Bxe6 {[%clk 0:02:52]} 16. Rxe6 {[%clk 0:01:41]}  Rae8 {[%clk 0:02:53]} 17. Rxe8 {[%clk 0:01:34]}  Rxe8 {[%clk 0:02:54]} 18. Rb1 {[%clk 0:01:34]}  Qxa2 {[%clk 0:02:54]} 19. Rxb7 {[%clk 0:01:35]}  Ne4 {[%clk 0:02:54]} 20. Qf1 {[%clk 0:01:34]}  Nd2 {[%clk 0:02:39]} 21. Qd1 {[%clk 0:01:07]}  Nxf3+ {[%clk 0:02:06]} 22. Qxf3 {[%clk 0:01:00]}  Re1+ {[%clk 0:02:03]} 23. Bf1 {[%clk 0:00:59]}  Rxf1+ {[%clk 0:02:04]} 24. Kxf1 {[%clk 0:00:59]}  Qa6+ {[%clk 0:02:03]} 25. Qe2 {[%clk 0:00:59]}  Qa1+ {[%clk 0:01:55]} 26. Qe1 {[%clk 0:00:57]}  Qa6+ {[%clk 0:01:44]} 27. Kg1 {[%clk 0:00:57]}  h6 {[%clk 0:01:25]} 28. Qb1 {[%clk 0:00:48]}  Qc4 {[%clk 0:01:17]} 29. Rc7 {[%clk 0:00:42]}  Qa6 {[%clk 0:01:10]} 30. h3 {[%clk 0:00:28]}  Nxd4 {[%clk 0:01:10]} 31. Qb8+ {[%clk 0:00:19]}  Kh7 {[%clk 0:01:10]} 32. Qf8 {[%clk 0:00:17]}  Qg6 {[%clk 0:00:38]} 33. Rxa7 {[%clk 0:00:17]}  Ne2+ {[%clk 0:00:32]} 34. Kf1 {[%clk 0:00:17]}  Nd4 {[%clk 0:00:23]} 35. Ra8 {[%clk 0:00:16]}  Qb1# {[%clk 0:00:20]} 0-1


[Site "https://www.chess.com"]